fUST/lending_fUST_20251006
["ID","MTS","AMOUNT","RATE_DAILY","PERIOD"]
[389538841,1759705848370,-632.87,0.00017534,2]
[389538842,1759705848379,-530.71,0.00017534,2]
[389538843,1759705848388,-500.0,0.00017534,2]
[389538844,1759705848397,-500.0,0.00017534,2]
[389538845,1759705848407,-500.0,0.00017534,2]
[389538846,1759705848417,-500.0,0.00017534,2]
[389538847,1759705848428,-500.0,0.00017534,2]
[389538848,1759705848437,-500.0,0.00017534,2]
[389538849,1759705848446,-500.0,0.00017534,2]
[389538850,1759705848456,-1189.0,0.00017534,2]
[389538851,1759705848466,-8912.09,0.00017534,2]
[389538852,1759705848476,-500.0,0.00017534,2]
[389538853,1759705848485,-520.41,0.00017534,2]
[389538854,1759705848496,-500.0,0.00017534,2]
[389538855,1759705848506,-500.0,0.00017534,2]
[389538856,1759705848515,-2968.23,0.00017534,2]
[389538857,1759705848524,-500.0,0.00017534,2]
[389538858,1759705848533,-579.91065967,0.00017534,2]
[389538859,1759705848542,-1675.7,0.00017534,2]
[389538860,1759705848551,-6817.73,0.00017534,2]
[389538861,1759705848560,-500.0,0.00017534,2]
[389538862,1759705848568,-3638.84,0.00017534,2]
[389538863,1759705848577,-500.0,0.00017534,2]
[389538864,1759705848586,-640.66,0.00017534,2]
[389538865,1759705848595,-632.16,0.00017534,2]
[389538866,1759705848603,-500.0,0.00017534,2]
[389538867,1759705848612,-1161.24,0.00017534,2]
[389538868,1759705848621,-513.85,0.00017534,2]
[389538869,1759705848629,-500.0,0.00017534,2]
[389538870,1759705848638,-9970.0,0.00017534,2]
[389538871,1759705848647,-2284.57,0.00017534,2]
[389538872,1759705848656,-500.0,0.00017534,2]
[389538873,1759705848665,-668.53,0.00017534,2]
[389538874,1759705848674,-570.01,0.00017534,2]
[389538875,1759705848683,-151.0,0.00017534,2]
[389538876,1759705848691,-924.87,0.00017534,2]
[389538877,1759705848700,-500.0,0.00017534,2]
[389538878,1759705848709,-1146.16,0.00017534,2]
[389538879,1759705848718,-609.39,0.00017534,2]
[389538880,1759705848727,-500.0,0.00017534,2]
[389538881,1759705848736,-1894.56,0.00017534,2]
[389538882,1759705848744,-151.0,0.00017534,2]
[389538883,1759705848753,-2974.64,0.00017534,2]
[389538884,1759705848762,-500.0,0.00017534,2]
[389538885,1759705848771,-564.25,0.00017534,2]
[389538886,1759705848780,-500.0,0.00017534,2]
[389538887,1759705848790,-500.0,0.00017534,2]
[389538888,1759705848803,-2526.54,0.00017534,2]
[389538889,1759705848811,-605.77579361,0.00017534,2]
[389538890,1759705848820,-732.81,0.00017534,2]
[389538891,1759705848829,-500.0,0.00017534,2]
[389538892,1759705848839,-500.0,0.00017534,2]
[389538893,1759705848848,-500.0,0.00017534,2]
[389538894,1759705848856,-3467.79,0.00017534,2]
[389538895,1759705848867,-500.0,0.00017534,2]
[389538896,1759705848878,-500.0,0.00017534,2]
[389538897,1759705848887,-506.24,0.00017534,2]
[389538898,1759705848896,-500.0,0.00017534,2]
[389538899,1759705848905,-746.65,0.00017534,2]
[389538900,1759705848913,-976.36,0.00017534,2]
[389538901,1759705848923,-711.04,0.00017534,2]
[389538902,1759705848932,-751.27,0.00017534,2]
[389538903,1759705848940,-1602.39,0.00017534,2]
[389538904,1759705848949,-500.0,0.00017534,2]
[389538905,1759705848959,-3309.79,0.00017534,2]
[389538906,1759705848967,-818.06,0.00017534,2]
[389538907,1759705848976,-500.0,0.00017534,2]
[389538908,1759705848985,-1432.31,0.00017534,2]
[389538909,1759705848994,-743.67,0.00017534,2]
[389538910,1759705849003,-500.0,0.00017534,2]
[389538911,1759705849013,-500.0,0.00017534,2]
[389538912,1759705849021,-500.0,0.00017534,2]
[389538913,1759705849030,-500.0,0.00017534,2]
[389538914,1759705849039,-2019.94,0.00017534,2]
[389538915,1759705849048,-500.0,0.00017534,2]
[389538916,1759705849057,-706.38,0.00017534,2]
[389538917,1759705849066,-1187.5,0.00017534,2]
[389538918,1759705849074,-525.9,0.00017534,2]
[389538919,1759705849084,-500.0,0.00017534,2]
[389538920,1759705849093,-714.3,0.00017534,2]
[389538921,1759705849101,-8105.41,0.00017534,2]
[389538922,1759705849110,-872.9,0.00017534,2]
[389538923,1759705849119,-1229.68,0.00017534,2]
[389538924,1759705849128,-500.0,0.00017534,2]
[389538925,1759705849137,-500.0,0.00017534,2]
[389538926,1759705849145,-500.0,0.00017534,2]
[389538927,1759705849154,-4700.42,0.00017534,2]
[389538928,1759705849163,-870.06,0.00017534,2]
[389538929,1759705849172,-500.0,0.00017534,2]
[389538930,1759705849181,-1113.67,0.00017534,2]
[389538931,1759705849191,-372.0,0.00017536,2]
[389538932,1759705849199,-1021.335701,0.000176,2]
[389538933,1759705849209,-1869.28133295,0.0001772,2]
[389538934,1759705849218,-500.0,0.00017778,2]
[389538935,1759705849228,-500.0,0.00017778,2]
[389538936,1759705849237,-500.0,0.00017778,2]
[389538937,1759705849246,-500.0,0.00017778,2]
[389538938,1759705849256,-500.0,0.00017778,2]
[389538939,1759705849266,-500.0,0.00017778,2]
[389538940,1759705849275,-500.0,0.00017778,2]
[389538941,1759705849285,-500.0,0.00017778,2]
[389538942,1759705849295,-500.0,0.00017778,2]
[389538943,1759705849305,-500.0,0.00017778,2]
[389538944,1759705849315,-500.0,0.00017778,2]
[389538945,1759705849324,-500.0,0.00017778,2]
[389538946,1759705849334,-500.0,0.00017778,2]
[389538947,1759705849343,-500.0,0.00017778,2]
[389538948,1759705849352,-500.0,0.00017778,2]
[389538949,1759705849361,-500.0,0.00017778,2]
[389538950,1759705849370,-501.97120374,0.00017778,2]
[389538951,1759705849380,-500.0,0.00017778,2]
[389538952,1759705849389,-500.0,0.00017792,2]
[389538953,1759705849398,-500.0,0.00017792,2]
[389538954,1759705849407,-500.0,0.00017792,2]
[389538955,1759705849416,-500.0,0.00017792,2]
[389538956,1759705849426,-406.06007539,0.00017792,2]
[389538957,1759705849435,-500.0,0.00017792,2]
[389538958,1759705849444,-500.0,0.00017793,2]
[389538959,1759705849454,-500.0,0.00017793,2]
[389538960,1759705849463,-500.0,0.00017793,2]
[389538961,1759705849472,-2714.86,0.00017798,3]
[389538962,1759705849481,-1357.42,0.00017798,3]
[389538963,1759705849490,-678.72,0.00017798,3]
[389538964,1759705849499,-678.72,0.00017798,3]
[389538965,1759705849509,-1459.24,0.00017798,3]
[389538966,1759705849519,-1825.32,0.00017798,3]
[389538967,1759705849528,-912.66,0.00017798,3]
[389538968,1759705849537,-456.32,0.00017798,3]
[389538969,1759705849547,-533.57524315,0.00017798,3]
[389538970,1759705849557,-293.57808533,0.00017798,3]
[389538971,1759705849566,-500.0,0.00017808,2]
[389538972,1759705849576,-500.0,0.00017808,2]
[389538973,1759705849585,-467.02153058,0.00017808,2]
[389538974,1759705849595,-500.0,0.00017808,2]
[389538975,1759705849604,-500.0,0.00017808,2]
[389538976,1759705849613,-500.0,0.00017808,2]
[389538977,1759705849624,-1313.55,0.00017808,2]
[389538978,1759705849635,-500.0,0.00017808,2]
[389538979,1759705849645,-1089.97,0.00017808,2]
[389538980,1759705849656,-702.03,0.00017808,2]
[389538981,1759705849666,-278.82438791,0.00017808,2]
[389538982,1759705849675,-500.0,0.00017808,2]
[389538983,1759705849686,-595.35,0.00017808,2]
[389538984,1759705849695,-722.19,0.00017808,2]
[389538985,1759705849705,-500.0,0.00017808,2]
[389538986,1759705849714,-500.0,0.00017808,2]
[389538987,1759705849723,-500.0,0.00017808,2]
[389538988,1759705849732,-561.33,0.00017808,2]
[389538989,1759705849742,-500.0,0.00017808,2]
[389538990,1759705849752,-500.0,0.00017808,2]
[389538991,1759705849761,-500.0,0.00017808,2]
[389538992,1759705849770,-680.42,0.00017808,2]
[389538993,1759705849779,-151.0,0.00017808,2]
[389538994,1759705849790,-1175.06,0.00017808,2]
[389538995,1759705849803,-500.0,0.00017808,2]
[389538996,1759705849812,-632.87,0.00017808,2]
[389538997,1759705849821,-500.0,0.00017808,2]
[389538998,1759705849831,-500.0,0.00017808,2]
[389538999,1759705849841,-500.0,0.00017808,2]
[389539000,1759705849850,-500.0,0.00017808,2]
[389539001,1759705849860,-500.0,0.00017808,2]
[389539002,1759705849871,-500.0,0.00017808,2]
[389539003,1759705849880,-500.0,0.00017808,2]
[389539004,1759705849889,-1189.0,0.00017808,2]
[389539005,1759705849899,-8912.09,0.00017808,2]
[389539006,1759705849908,-500.0,0.00017808,2]
[389539007,1759705849917,-520.41,0.00017808,2]
[389539008,1759705849927,-500.0,0.00017808,2]
[389539009,1759705849936,-500.0,0.00017808,2]
[389539010,1759705849945,-2968.23,0.00017808,2]
[389539011,1759705849954,-500.0,0.00017808,2]
[389539012,1759705849964,-1675.7,0.00017808,2]
[389539013,1759705849973,-6817.73,0.00017808,2]
[389539014,1759705849983,-500.0,0.00017808,2]
[389539015,1759705849992,-3638.84,0.00017808,2]
[389539016,1759705850002,-500.0,0.00017808,2]
[389539017,1759705850013,-640.66,0.00017808,2]
[389539018,1759705850022,-632.16,0.00017808,2]
[389539019,1759705850032,-500.0,0.00017808,2]
[389539020,1759705850041,-1161.24,0.00017808,2]
[389539021,1759705850051,-513.85,0.00017808,2]
[389539022,1759705850060,-500.0,0.00017808,2]
[389539023,1759705850070,-9970.0,0.00017808,2]
[389539024,1759705850079,-2284.57,0.00017808,2]
[389539025,1759705850089,-500.0,0.00017808,2]
[389539026,1759705850099,-668.53,0.00017808,2]
[389539027,1759705850108,-570.01,0.00017808,2]
[389539028,1759705850118,-161.65222,0.00017808,2]
[389539029,1759705850128,-924.87,0.00017808,2]
[389539030,1759705850137,-500.0,0.00017808,2]
[389539031,1759705850146,-1146.16,0.00017808,2]
[389539032,1759705850155,-609.39,0.00017808,2]
[389539033,1759705850164,-500.0,0.00017808,2]
[389539034,1759705850174,-1894.56,0.00017808,2]
[389539035,1759705850184,-197.452558,0.00017808,2]
[389539036,1759705850193,-2974.64,0.00017808,2]
[389539037,1759705850202,-500.0,0.00017808,2]
[389539038,1759705850211,-564.25,0.00017808,2]
[389539039,1759705850221,-500.0,0.00017808,2]
[389539040,1759705850230,-500.0,0.00017808,2]
[389539041,1759705850239,-2526.54,0.00017808,2]
[389539042,1759705850248,-500.0,0.00017808,2]
[389539043,1759705850257,-500.0,0.00017808,2]
[389539044,1759705850268,-500.0,0.00017808,2]
[389539045,1759705850277,-3467.79,0.00017808,2]
[389539046,1759705850286,-732.81,0.00017808,2]
[389539047,1759705850296,-500.0,0.00017808,2]
[389539048,1759705850305,-500.0,0.00017808,2]
[389539049,1759705850314,-506.24,0.00017808,2]
[389539050,1759705850324,-500.0,0.00017808,2]
[389539051,1759705850334,-166.317112,0.00017808,2]
[389539052,1759705850342,-151.0,0.00017808,2]
[389539053,1759705850351,-746.65,0.00017808,2]
[389539054,1759705850511,-151.0,0.00017808,2]
[389539055,1759705850521,-976.36,0.00017808,2]
[389539056,1759705850531,-751.27,0.00017808,2]
[389539057,1759705850541,-711.04,0.00017808,2]
[389539058,1759705850551,-1602.39,0.00017808,2]
[389539059,1759705850560,-151.0,0.00017808,2]
[389539060,1759705850569,-151.0,0.00017808,2]
[389539061,1759705850578,-500.0,0.00017808,2]
[389539062,1759705850587,-3309.79,0.00017808,2]
[389539063,1759705850597,-818.06,0.00017808,2]
[389539064,1759705850606,-500.0,0.00017808,2]
[389539065,1759705850615,-1432.31,0.00017808,2]
[389539066,1759705850624,-743.67,0.00017808,2]
[389539067,1759705850634,-500.0,0.00017808,2]
[389539068,1759705850643,-500.0,0.00017808,2]
[389539069,1759705850652,-500.0,0.00017808,2]
[389539070,1759705850662,-500.0,0.00017808,2]
[389539071,1759705850671,-2019.94,0.00017808,2]
[389539072,1759705850681,-500.0,0.00017808,2]
[389539073,1759705850690,-1414.056115,0.00017808,2]
[389539074,1759705850699,-1414.056115,0.00017808,2]
[389539075,1759705850709,-1414.056115,0.00017808,2]
[389539076,1759705850717,-1414.056115,0.00017808,2]
[389539077,1759705850727,-706.38,0.00017808,2]
[389539078,1759705850736,-1187.5,0.00017808,2]
[389539079,1759705850746,-525.9,0.00017808,2]
[389539080,1759705850755,-500.0,0.00017808,2]
[389539081,1759705850764,-714.3,0.00017808,2]
[389539082,1759705850774,-8105.41,0.00017808,2]
[389539083,1759705850783,-872.9,0.00017808,2]
[389539084,1759705850797,-1229.68,0.00017808,2]
[389539085,1759705850809,-500.0,0.00017808,2]
[389539086,1759705850819,-500.0,0.00017808,2]
[389539087,1759705850827,-500.0,0.00017808,2]
[389539088,1759705850836,-4700.42,0.00017808,2]
[389539089,1759705850846,-220.14754118,0.00017808,2]
[389539090,1759705851170,-372.9242503,0.00016438,2]
[389539091,1759705851182,-127.0757497,0.00016438,2]
[389539092,1759705851191,-649.91245882,0.00017808,2]
[389539093,1759705851200,-328.08848369,0.00017808,2]
[389539094,1759705851209,-1113.67,0.00017808,2]
[389539095,1759705851218,-500.0,0.00017818,2]
[389539096,1759705851228,-500.0,0.00017818,2]
[389539097,1759705851237,-500.0,0.00017818,2]
[389539098,1759705851246,-500.0,0.00017818,2]
[389539099,1759705851255,-500.0,0.00017818,2]
[389539100,1759705851265,-166.0,0.00017833,2]
[389539101,1759705851274,-166.0,0.00017833,2]
[389539102,1759705851284,-172.0,0.00017833,2]
[389539103,1759705851293,-166.0,0.00017833,2]
[389539104,1759705851302,-157.0,0.00017833,2]
[389539105,1759705851311,-157.0,0.00017833,2]
[389539106,1759705851320,-157.0,0.00017833,2]
[389539107,1759705851329,-154.79684504,0.00017833,2]
[389539108,1759705851338,-157.0,0.00017833,2]
[389539109,1759705851348,-161.87678413,0.00017833,2]
[389539110,1759705851357,-157.0,0.00017833,2]
[389539111,1759705851366,-329.0,0.00017833,2]
[389539112,1759705851375,-329.0,0.00017833,2]
[389539113,1759705851384,-329.0,0.00017833,2]
[389539114,1759705851393,-329.0,0.00017833,2]
[389539115,1759705851402,-329.0,0.00017833,2]
[389539116,1759705851411,-1680.0,0.00017856,2]
[389539117,1759705851420,-420.0,0.00017856,2]
[389539118,1759705851429,-160.0,0.0001788,2]
[389539119,1759705851438,-396.0,0.00017936,2]
[389539120,1759705851447,-1680.0,0.00017944,2]
[389539121,1759705851456,-1128.19219473,0.00017953,2]
[389539122,1759705851465,-500.0,0.00017971,2]
[389539123,1759705851474,-1462.69837622,0.00018059,2]
[389539124,1759705851483,-152.425189,0.00018072,2]
[389539125,1759705851493,-19530.60513491,0.00018072,2]
[389539126,1759705851505,-674.58000004,0.00018072,2]
[389539127,1759705851522,-478.9033324,0.00018072,2]
[389539128,1759705851533,-62.17481623,0.00018072,2]
[389539129,1759705851543,-500.0,0.00018082,2]
[389539130,1759705851553,-500.0,0.00018082,2]
[389539131,1759705851562,-157.59965824,0.00018082,2]
[389539132,1759705851570,-189.65012416,0.00018082,2]
[389539134,1759705882086,200.0,0.00031743,120]
[389539135,1759705942734,417.15472785,0.00025,30]
[389539136,1759705993339,500.0,0.00027397,120]
[389539137,1759706065765,4781.37311186,0.0002012,9]
[389539139,1759706132125,177.0,0.00021906,120]
[389539140,1759706151225,666.0,0.00015433,2]
[389539141,1759706308895,500.0,0.00027397,120]
[389539145,1759706580873,155.59973282,0.00027589,120]
[389539147,1759706625539,500.0,0.00027397,120]
[389539149,1759706916466,2016.27893819,0.00024,60]
[389539154,1759706939985,500.0,0.00027397,120]
[389539158,1759706948019,2000.0,0.00031722,60]
[389539160,1759706982105,3000.0,0.00031722,60]
[389539202,1759707032039,-300.0,0.00016165,2]
[389539204,1759707032049,-358.920495,0.000162,2]
[389539206,1759707032065,-141.079505,0.000162,2]
[389539208,1759707032074,-1121.89120068,0.00016328,2]
[389539210,1759707032083,-178.36909989,0.00016338,2]
[389539212,1759707032092,-516.59118003,0.00016338,2]
[389539214,1759707032102,-452.98012144,0.00016425,2]
[389539216,1759707032111,-500.0,0.00016425,2]
[389539219,1759707032121,-500.0,0.00016425,2]
[389539220,1759707032130,-540.93382077,0.00016425,2]
[389539222,1759707032139,-515.63530868,0.00016425,2]
[389539225,1759707032148,-500.0,0.00016425,2]
[389539226,1759707032158,-500.0,0.00016425,2]
[389539228,1759707032167,-500.0,0.00016425,2]
[389539230,1759707032176,-500.0,0.00016425,2]
[389539232,1759707032186,-530.80628316,0.00016425,2]
[389539234,1759707032194,-1200.0,0.00016426,2]
[389539236,1759707032203,-300.0,0.00016426,2]
[389539238,1759707032212,-300.0,0.00016426,2]
[389539240,1759707032221,-300.0,0.00016426,2]
[389539242,1759707032230,-300.0,0.00016426,2]
[389539244,1759707032239,-1200.0,0.00016426,2]
[389539246,1759707032248,-50000.0,0.00016426,2]
[389539247,1759707032257,-603.8626964,0.00016427,2]
[389539249,1759707032266,-418.5956795,0.00016427,2]
[389539251,1759707032275,-791.83,0.00016428,3]
[389539252,1759707032284,-1284.62,0.00016428,3]
[389539253,1759707032293,-642.31,0.00016428,3]
[389539255,1759707032302,-321.16,0.00016428,3]
[389539257,1759707032311,-160.58,0.00016428,3]
[389539259,1759707032320,-481.76,0.00016428,3]
[389539261,1759707032330,-500.0,0.00016438,2]
[389539263,1759707032339,-500.0,0.00016438,2]
[389539265,1759707032350,-500.0,0.00016438,2]
[389539267,1759707032359,-500.0,0.00016438,2]
[389539269,1759707032368,-186.39041725,0.00016438,2]
[389539271,1759707032377,-252.87083301,0.00016438,2]
[389539273,1759707032386,-500.0,0.00016438,2]
[389539275,1759707032396,-500.0,0.00016438,2]
[389539277,1759707032405,-500.0,0.00016438,2]
[389539279,1759707032414,-500.0,0.00016438,2]
[389539281,1759707032423,-500.0,0.00016438,2]
[389539283,1759707032431,-500.0,0.00016438,2]
[389539285,1759707032440,-454.52496507,0.00016438,2]
[389539287,1759707032449,-500.0,0.00016438,2]
[389539288,1759707032458,-500.0,0.00016438,2]
[389539290,1759707032467,-500.0,0.00016438,2]
[389539292,1759707032476,-500.0,0.00016438,2]
[389539294,1759707032485,-500.0,0.00016438,2]
[389539296,1759707032494,-1108.61,0.00016438,2]
[389539298,1759707032503,-500.0,0.00016438,2]
[389539300,1759707032512,-500.0,0.00016438,2]
[389539302,1759707032521,-500.0,0.00016438,2]
[389539304,1759707032530,-500.0,0.00016438,2]
[389539306,1759707032540,-500.0,0.00016438,2]
[389539308,1759707032549,-500.0,0.00016438,2]
[389539310,1759707032558,-500.0,0.00016438,2]
[389539312,1759707032567,-500.0,0.00016438,2]
[389539314,1759707032576,-500.0,0.00016438,2]
[389539316,1759707032585,-500.0,0.00016438,2]
[389539318,1759707032594,-500.0,0.00016438,2]
[389539320,1759707032603,-500.0,0.00016438,2]
[389539322,1759707032612,-984.0,0.00016438,2]
[389539324,1759707032621,-500.0,0.00016438,2]
[389539326,1759707032630,-500.0,0.00016438,2]
[389539328,1759707032638,-621.98,0.00016438,2]
[389539330,1759707032647,-529.2,0.00016438,2]
[389539331,1759707032657,-500.0,0.00016438,2]
[389539333,1759707032666,-500.0,0.00016438,2]
[389539335,1759707032675,-500.0,0.00016438,2]
[389539337,1759707032684,-500.0,0.00016438,2]
[389539339,1759707032693,-500.0,0.00016438,2]
[389539341,1759707032703,-601.82,0.00016438,2]
[389539343,1759707032713,-500.0,0.00016438,2]
[389539344,1759707032722,-500.0,0.00016438,2]
[389539345,1759707032731,-500.0,0.00016438,2]
[389539346,1759707032741,-500.0,0.00016438,2]
[389539347,1759707032750,-500.0,0.00016438,2]
[389539348,1759707032759,-500.0,0.00016438,2]
[389539349,1759707032768,-500.0,0.00016438,2]
[389539350,1759707032777,-500.0,0.00016438,2]
[389539351,1759707032787,-500.0,0.00016438,2]
[389539352,1759707032799,-500.0,0.00016438,2]
[389539353,1759707032808,-500.0,0.00016438,2]
[389539354,1759707032817,-500.0,0.00016438,2]
[389539355,1759707032827,-1010.86,0.00016438,2]
[389539356,1759707032836,-1010.86,0.00016438,2]
[389539357,1759707032846,-1010.86,0.00016438,2]
[389539358,1759707032855,-1010.86,0.00016438,2]
[389539359,1759707032864,-1010.86,0.00016438,2]
[389539360,1759707032873,-1010.86,0.00016438,2]
[389539361,1759707032882,-1010.86,0.00016438,2]
[389539362,1759707032891,-1010.86,0.00016438,2]
[389539363,1759707032900,-1010.86,0.00016438,2]
[389539364,1759707032909,-1010.86,0.00016438,2]
[389539365,1759707032918,-1010.86,0.00016438,2]
[389539366,1759707032932,-1010.86,0.00016438,2]
[389539367,1759707032941,-500.0,0.00016438,2]
[389539368,1759707032951,-500.0,0.00016438,2]
[389539369,1759707032959,-500.0,0.00016438,2]
[389539370,1759707032975,-490.20991956,0.00016438,2]
[389539371,1759707032989,-500.0,0.00016438,2]
[389539372,1759707032999,-500.0,0.00016438,2]
[389539373,1759707033008,-500.0,0.00016438,2]
[389539374,1759707033017,-500.0,0.00016438,2]
[389539375,1759707033026,-500.0,0.00016438,2]
[389539376,1759707033035,-500.0,0.00016438,2]
[389539377,1759707033051,-500.0,0.00016438,2]
[389539378,1759707033060,-500.0,0.00016438,2]
[389539379,1759707033069,-556.22,0.00016438,2]
[389539380,1759707033078,-500.0,0.00016438,2]
[389539381,1759707033087,-500.0,0.00016438,2]
[389539382,1759707033099,-500.0,0.00016438,2]
[389539383,1759707033109,-500.0,0.00016438,2]
[389539384,1759707033118,-169.45845256,0.00016438,2]
[389539385,1759707033127,-500.0,0.00016438,2]
[389539386,1759707033136,-500.0,0.00016438,2]
[389539387,1759707033145,-500.0,0.00016438,2]
[389539388,1759707033154,-500.0,0.00016438,2]
[389539389,1759707033163,-500.0,0.00016438,2]
[389539390,1759707033173,-500.0,0.00016438,2]
[389539391,1759707033182,-500.0,0.00016438,2]
[389539392,1759707033191,-500.0,0.00016438,2]
[389539393,1759707033201,-500.0,0.00016438,2]
[389539394,1759707033210,-500.0,0.00016438,2]
[389539395,1759707033219,-705.08,0.00016438,2]
[389539396,1759707033228,-500.0,0.00016438,2]
[389539397,1759707033238,-500.0,0.00016438,2]
[389539398,1759707033248,-524.82,0.00016438,2]
[389539399,1759707033257,-637.71,0.00016438,2]
[389539400,1759707033266,-225.84224848,0.00016438,2]
[389539401,1759707033276,-500.0,0.00016438,2]
[389539402,1759707033286,-500.0,0.00016438,2]
[389539403,1759707033295,-500.0,0.00016438,2]
[389539404,1759707033304,-500.0,0.00016438,2]
[389539405,1759707033315,-500.0,0.00016438,2]
[389539406,1759707033324,-500.0,0.00016438,2]
[389539407,1759707033333,-500.0,0.00016438,2]
[389539408,1759707033343,-241.23034448,0.00016438,2]
[389539409,1759707033352,-500.0,0.00016438,2]
[389539410,1759707033361,-500.0,0.00016438,2]
[389539411,1759707033370,-1254.34,0.00016438,2]
[389539412,1759707033379,-480.0,0.00016438,2]
[389539413,1759707033388,-500.0,0.00016438,2]
[389539414,1759707033398,-500.0,0.00016438,2]
[389539415,1759707033407,-500.0,0.00016438,2]
[389539416,1759707033416,-500.0,0.00016438,2]
[389539417,1759707033425,-500.0,0.00016438,2]
[389539418,1759707033434,-500.0,0.00016438,2]
[389539419,1759707033443,-500.0,0.00016438,2]
[389539420,1759707033453,-500.0,0.00016438,2]
[389539421,1759707033462,-500.0,0.00016438,2]
[389539422,1759707033471,-615.45592471,0.00016438,2]
[389539423,1759707033481,-500.0,0.00016438,2]
[389539424,1759707033490,-500.0,0.00016438,2]
[389539425,1759707033500,-1198.68,0.00016438,2]
[389539426,1759707033509,-500.0,0.00016438,2]
[389539427,1759707033518,-500.0,0.00016438,2]
[389539428,1759707033528,-500.0,0.00016438,2]
[389539429,1759707033537,-500.0,0.00016438,2]
[389539430,1759707033546,-500.0,0.00016438,2]
[389539431,1759707033555,-500.0,0.00016438,2]
[389539432,1759707033564,-500.0,0.00016438,2]
[389539433,1759707033574,-500.0,0.00016438,2]
[389539434,1759707033583,-500.0,0.00016438,2]
[389539435,1759707033592,-500.0,0.00016438,2]
[389539436,1759707033600,-500.0,0.00016438,2]
[389539437,1759707033609,-500.0,0.00016438,2]
[389539438,1759707033619,-500.0,0.00016438,2]
[389539439,1759707033629,-466.65104904,0.00016438,2]
[389539440,1759707033639,-500.0,0.00016438,2]
[389539441,1759707033648,-480.37020822,0.00016438,2]
[389539448,1759707038073,-19.62979178,0.00016438,2]
[389539450,1759707038083,-500.0,0.00016438,2]
[389539452,1759707038092,-500.0,0.00016438,2]
[389539454,1759707038102,-500.0,0.00016438,2]
[389539457,1759707038111,-9527.52,0.00016438,2]
[389539459,1759707038121,-500.0,0.00016438,2]
[389539461,1759707038131,-500.0,0.00016438,2]
[389539463,1759707038141,-500.0,0.00016438,2]
[389539465,1759707038151,-500.0,0.00016438,2]
[389539467,1759707038160,-491.39422875,0.00016438,2]
[389539469,1759707038170,-3132.62,0.00016438,2]
[389539471,1759707038179,-500.0,0.00016438,2]
[389539473,1759707038189,-1179.24,0.00016438,2]
[389539475,1759707038198,-500.0,0.00016438,2]
[389539477,1759707038207,-500.0,0.00016438,2]
[389539479,1759707038217,-588.36,0.00016438,2]
[389539481,1759707038226,-699.68,0.00016438,2]
[389539483,1759707038235,-571.48,0.00016438,2]
[389539485,1759707038245,-523.16,0.00016438,2]
[389539487,1759707038254,-500.0,0.00016438,2]
[389539489,1759707038263,-500.0,0.00016438,2]
[389539491,1759707038273,-654.39,0.00016438,2]
[389539493,1759707038282,-1201.9,0.00016438,2]